Cogmind - Beta 14 @@@ ROGUE MODE // 2025.01.07 @ 14:13:07 Player: puppuppit Result: Destroyed by B-75 Beast with Magnetic Acceleration Cannon Performance ------------- Evolutions (2) 1000 Regions Visited (9) 1800 Robots Destroyed (253) 1265 Value Destroyed (7722) 7722 Prototype IDs (40) 800 Alien Tech Used (0) 0 Bonus (3002) 3002 TOTAL SCORE: 15589 Bonus ------- High Alert Combat Kills 2162 Follower Combat Kills 496 Entered Garrisons 200 Aligned with FarCom 300 Friendly Fire -156 Cogmind --------- Core Integrity 0/550 Matter 219/300 Energy 83/100 System Corruption 0% Temperature Hot (248) Movement Hovering (106) Ox1 Location -8/Garrison Parts ------- > --- POWER (1) -------- (None) > --- PROPULSION (3) --- Aerolev Unit Aerolev Unit > --- UTILITY (3) ------ Advanced Heat Sink Medium Storage Unit > --- WEAPON (4) ------- Gauss Rifle Gauss Rifle Gauss Rifle Gauss Rifle > --- INVENTORY (10) --- Aerolev Unit Improved Field Recycling Unit (200) Bomb Drone Bay (3/16) Enhanced Autogun XL Autogun Array Peak State ------------ > --- POWER ------------ Light Deuterium Engine > --- PROPULSION ------- Aerolev Unit Combat Airjet Combat Airjet > --- UTILITY ---------- Medium Storage Unit Bomb Drone Bay > --- WEAPON ----------- Improved Assault Rifle Minigun Enhanced Autogun Gauss Rifle > --- INVENTORY -------- Aerolev Unit Aerolev Unit Aerolev Unit High-capacity Matter Pod Improved Weapon Shielding XL Autogun Array [Rating: 51] Favorites ----------- Power Light Nuclear Core Engine Light Deuterium Engine Power Core Light Nuclear Core Propulsion Combat Airjet Wheel Wheel Hover Unit Combat Airjet Utility Medium Storage Unit Device Tractor Beam Storage Medium Storage Unit Processor Improved Targeting Computer Hackware Hacking Suite Protection Core Shielding Weapon Improved Assault Rifle Energy Gun Medium Laser Ballistic Gun Improved Assault Rifle Ballistic Cannon Mini Assault Cannon Launcher Proton Missile Launcher Build | -11 -10 -10 -9 -9 -9 -8 -8 -8 -8 ------- Run | Yrd Mat Min Mat Min Exi Min Mat Sto Gar Slots Evolved 4 | . . . 2 . . . 2 . . Power . | . . . . . . . . . . Propulsion 1 | . . . 1 . . . . . . Utility 1 | . . . . . . . 1 . . Weapon 2 | . . . 1 . . . 1 . . Parts Attached 234 | 10 15 12 34 20 4 6 79 20 34 Power 33 | 1 4 2 5 2 . . 7 5 7 Engine 15 | 1 4 1 3 2 . . 2 2 . Core 18 | . . 1 2 . . . 5 3 7 Reactor . | . . . . . . . . . . Propulsion 50 | 4 7 2 9 6 . 2 16 2 2 Treads . | . . . . . . . . . . Leg . | . . . . . . . . . . Wheel 15 | 4 5 2 4 . . . . . . Hover 35 | . 2 . 5 6 . 2 16 2 2 Flight . | . . . . . . . . . . Utility 65 | 2 . 5 2 3 2 1 23 11 16 Device 28 | 1 . 3 1 1 . 1 11 4 6 Storage 5 | 1 . 1 1 . 1 . 1 . . Processor 9 | . . . . . 1 . 5 3 . Hackware 6 | . . . . . . . 4 2 . Protection 17 | . . 1 . 2 . . 2 2 10 Artifact . | . . . . . . . . . . Weapon 86 | 3 4 3 18 9 2 3 33 2 9 Energy Gun 2 | 2 . . . . . . . . . Energy Cannon . | . . . . . . . . . . Ballistic Gun 63 | 1 4 2 14 6 2 2 21 2 9 Ballistic Cannon 2 | . . . . . . . 2 . . Launcher 19 | . . 1 4 3 . 1 10 . . Special Weapon . | . . . . . . . . . . Impact Weapon . | . . . . . . . . . . Slashing Weapon . | . . . . . . . . . . Piercing Weapon . | . . . . . . . . . . Special Melee Weapon . | . . . . . . . . . . Unidentified Prototypes 5 | . . 2 2 . . . 1 . . Parts Lost 22 | . 2 3 2 3 . 3 4 1 4 Power 4 | . . . 1 . . . 1 1 1 Propulsion 10 | . 1 2 1 2 . 1 2 . 1 Utility 3 | . . 1 . . . 1 . . 1 Weapon 5 | . 1 . . 1 . 1 1 . 1 Highest Loss Streak 3 | . 2 3 1 3 . 2 1 1 3 To Critical Strikes . | . . . . . . . . . . Average Slot Usage (%) 97 | . 99 92 96 98 100 98 98 96 95 Engine 5 | . 14 11 3 11 11 11 4 . . Core 4 | . . 2 5 . . . 4 8 8 Wheel 5 | . 24 12 17 . . . . . . Hover 23 | . 3 14 15 32 33 33 26 26 26 Device 5 | . 14 8 7 4 8 1 4 1 6 Storage 10 | . 14 13 11 11 11 11 8 9 9 Processor 3 | . . . . . 2 9 7 5 . Hackware 2 | . . . . . . . 5 7 . Protection 2 | . . . 2 6 . . . 1 7 Ballistic Gun 32 | . 20 27 31 31 33 30 33 35 35 Peak Build Rating 51 | 7 8 21 24 28 30 35 51 50 51 Average Rating 31 | 5 7 7 19 24 28 33 42 41 42 On Entrance 22 | . 7 7 11 23 28 30 34 42 42 Naked Turns . | . . . . . . . . . . Heaviest Build 40 | 15 15 14 25 25 25 29 40 36 36 Greatest Support 33 | 32 26 20 30 28 26 32 33 32 32 Greatest Overweight (x) 2 | . 1 2 2 . . . 1 1 1 Average Overweight (x) . | . . . . . . . . . . Largest Inventory Capacity 10 | 8 8 8 10 10 10 10 10 10 10 Average Capacity 9 | 6 8 7 9 10 10 10 9 10 10 Most Carried 10 | 5 8 8 10 10 10 10 10 10 10 Average Carried 9 | 1 7 7 9 9 9 9 9 9 9 Final Capacity 10 | 8 8 8 10 10 10 10 10 10 10 Final Carried 10 | 5 8 8 10 10 10 10 10 10 9 Class Distribution -------------------- 43% | Scavenger-Skirmisher 18% | Gunner 8% | Mutant 7% | Scavenger-Mutant 5% | Tank 4% | Skirmisher 4% | Scavenger-Scout 3% | Scavenger-Tank Dominant Class ---------------- Scavenger-Mutant | -10/Materials Scavenger-Mutant | -10/Mines Gunner | -9/Materials Gunner | -9/Mines Gunner | -9/Exiles Scavenger-Skirmisher | -8/Mines Scavenger-Skirmisher | -8/Materials Scavenger-Skirmisher | -8/Storage Scavenger-Skirmisher | -8/Garrison Resources | -11 -10 -10 -9 -9 -9 -8 -8 -8 -8 ----------- Run | Yrd Mat Min Mat Min Exi Min Mat Sto Gar Matter Collected 8176 | 327 570 123 1359 347 . 324 2251 1332 1543 Remotely 1686 | 158 520 38 883 57 . . . 30 . Salvage Created 9051 | 138 408 195 2152 181 . 510 2193 1755 1519 Parts 563 | 9 44 15 125 19 . 33 138 100 80 Haulers Intercepted 20 | . 2 . 6 . . . 6 6 . Recyclers Shooed 6 | . 3 . 1 . . . . 2 . Parts Field Recycled 23 | . . . . . . . 23 . . Retrieved Matter 363 | . . . . . . . 363 . . Parts Self-Destructed . | . . . . . . . . . . Prevented . | . . . . . . . . . . Kills | -11 -10 -10 -9 -9 -9 -8 -8 -8 -8 ------- Run | Yrd Mat Min Mat Min Exi Min Mat Sto Gar Combat Hostiles Destroyed 160 | . 9 6 37 17 . 5 32 19 35 Guns 131 | . 9 3 26 6 . 5 29 19 34 AOE 29 | . . 3 11 11 . . 3 . 1 Classes Destroyed 16 | 2 5 1 5 1 . 1 1 . . Worker 19 | . . . 6 . . 1 8 4 . Builder 13 | . 2 . 2 . . 2 3 4 . Tunneler 11 | 2 1 3 . 1 . 2 2 . . Hauler 20 | . 2 . 6 . . . 6 6 . Recycler 13 | 1 . . 4 . . 4 . 4 . Mechanic 3 | . . . 1 . . . 1 1 . Operator 8 | . . . 2 . . . 4 2 . Watcher 14 | . 2 . 5 . . . 5 2 . Swarmer 37 | . 6 . 10 7 . 4 4 3 3 Grunt 76 | . 3 5 19 2 . . 17 8 22 Brawler 4 | . . . . 1 . . . . 3 Duelist 5 | . . . 1 . . . 1 . 3 Sentry 26 | . . . 8 . . . 7 7 4 Hunter 4 | . . . . . . 1 2 1 . Heavy 1 | . . . . . . . 1 . . Assembled 8 | . . 1 . 7 . . . . . Best Kill Streak 11 | 2 7 7 11 7 . 5 6 9 5 Combat Bots Only 8 | . 3 4 8 7 . 4 5 6 5 Max Kills in Single Turn 5 | 1 1 4 4 5 . 2 3 2 2 Gunslinging 1 | . . . . . . 1 . 1 1 Exploded 5 | . . 2 4 5 . . 1 . 1 Melee . | . . . . . . . . . . Uniques/NPCs Destroyed . | . . . . . . . . . . Combat | -11 -10 -10 -9 -9 -9 -8 -8 -8 -8 -------- Run | Yrd Mat Min Mat Min Exi Min Mat Sto Gar Hostile Shots Fired 550 | . 59 23 107 41 . 33 114 58 115 Missed 181 | . 14 5 36 13 . 8 44 20 41 Damage Taken 5201 | . 403 283 875 371 . 268 1149 577 1275 Core 971 | . 88 126 141 51 . 10 249 48 258 Absorbed by Shields 68 | . . . . . . . . . 68 Redirected to Shielding 151 | . . . 35 18 . . 35 . 63 Regen/Repaired (Parts) 614 | . . . 66 . . . 334 214 . Core Remaining (%) 54 | 100 . 14 . . . 49 . . . Volleys Fired 541 | 9 76 17 110 14 . 28 116 77 94 Largest 4 | 2 2 2 3 3 . 3 4 4 4 Hottest 115 | 70 70 53 79 79 . 90 115 101 112 Shots Fired 1709 | 18 152 34 323 38 . 76 433 302 333 Gun 1682 | 18 152 32 316 32 . 75 422 302 333 Cannon . | . . . . . . . . . . Launcher 27 | . . 2 7 6 . 1 11 . . Special . | . . . . . . . . . . Kinetic 1635 | 9 114 32 316 32 . 75 422 302 333 Thermal 47 | 9 38 . . . . . . . . Explosive 16 | . . 2 7 6 . . 1 . . Electromagnetic 11 | . . . . . . 1 10 . . Robot Hit Streak 16 | 3 8 4 15 5 . 8 11 16 9 Robot Miss Streak 10 | 2 6 5 4 3 . 4 10 4 6 Penetration Max 1 | . . . . . . . 1 1 1 Secondary Targets 19 | . 1 . . 1 . 1 6 3 7 Max Gunslinging Chain 1 | . 1 . . 1 . 1 1 1 1 Shots Hit Robots 944 | 11 84 16 196 20 . 39 226 184 168 Core Hits 427 | 4 35 13 90 33 . 18 98 72 64 Critical Kills 6 | . . . 1 . . . 3 2 . Critical Parts Destroyed 3 | . . . . . . . 2 1 . Critical Strikes 14 | . 4 . 1 . . . 5 3 1 Burn 4 | . 4 . . . . . . . . Destroy 10 | . . . 1 . . . 5 3 1 Melee Attacks . | . . . . . . . . . . Impact . | . . . . . . . . . . Slashing . | . . . . . . . . . . Piercing . | . . . . . . . . . . Sneak Attacks . | . . . . . . . . . . Combat Hostiles . | . . . . . . . . . . Follow-up Attacks . | . . . . . . . . . . Damage Inflicted 19246 | 134 868 601 3924 1201 . 597 5312 3426 3183 Guns 15986 | 134 868 160 3076 257 . 574 4308 3426 3183 Cannons . | . . . . . . . . . . Explosions 3260 | . . 441 848 944 . 23 1004 . . Melee . | . . . . . . . . . . Ramming . | . . . . . . . . . . Kinetic 15624 | 70 570 160 3076 257 . 574 4308 3426 3183 Thermal 1032 | 64 298 . 55 . . . 615 . . Explosive 2285 | . . 441 793 944 . . 107 . . Electromagnetic 305 | . . . . . . 23 282 . . Impact . | . . . . . . . . . . Slashing . | . . . . . . . . . . Piercing . | . . . . . . . . . . Highest Corruption . | . . . . . . . . . . Average Corruption . | . . . . . . . . . . Corruption Purged . | . . . . . . . . . . Corruption Blocked . | . . . . . . . . . . Overload Shots . | . . . . . . . . . . Overflow Damage 120 | . . 17 10 26 . . 67 . . Projectiles . | . . . . . . . . . . Explosions 120 | . . 17 10 26 . . 67 . . Melee . | . . . . . . . . . . Knockbacks . | . . . . . . . . . . Impact . | . . . . . . . . . . Kinetic . | . . . . . . . . . . Secondary . | . . . . . . . . . . Self-Inflicted Damage 91 | . . 73 . . . . 18 . . Shots 3 | . . 2 . . . . 1 . . Rammed . | . . . . . . . . . . Targets Rammed . | . . . . . . . . . . Kicked . | . . . . . . . . . . Crushed . | . . . . . . . . . . Highest Temperature 340 | 45 285 28 63 54 . 36 204 268 340 Average Temperature 59 | 22 65 7 16 16 . 11 62 76 99 Received Heat Transfer 2154 | . 120 90 393 30 . . 468 225 828 Effects 3 | . 2 . . . . . . . 1 Energy Bleed 1 | . . . . . . . . . 1 Interference 2 | . 2 . . . . . . . . Siege Activations . | . . . . . . . . . . Robots Corrupted . | . . . . . . . . . . Combat Hostiles . | . . . . . . . . . . Parts Fried 1 | . . . . . . . 1 . . Impact Corruptions . | . . . . . . . . . . Robots Melted . | . . . . . . . . . . Combat Hostiles . | . . . . . . . . . . Parts Melted 2 | . 2 . . . . . . . . Heat Transferred 1782 | 185 1147 . 50 . . . 400 . . Parts Sabotaged . | . . . . . . . . . . Parts Stolen . | . . . . . . . . . . Parts Stripped . | . . . . . . . . . . Power Chain Reactions 2 | . . . . . . . 2 . . Alert | -11 -10 -10 -9 -9 -9 -8 -8 -8 -8 ------- Run | Yrd Mat Min Mat Min Exi Min Mat Sto Gar Peak Influence 2160 | 15 313 238 960 629 . 100 930 1395 2160 Initial 817 | . 9 81 14 340 . . 39 392 817 Average 666 | 6 137 128 542 563 . 69 530 935 1456 Maximum Alert Level 5 | . 1 1 3 2 . . 3 4 5 Low Security (%) 22 | 100 72 86 14 . . 100 6 . . Level 1 12 | . 27 13 10 . . . 30 2 . Level 2 23 | . . . 36 99 . . 39 17 . Level 3 20 | . . . 38 . . . 23 49 12 Level 4 13 | . . . . . . . . 30 52 Level 5 6 | . . . . . . . . . 35 High Security . | . . . . . . . . . . Max Security . | . . . . . . . . . . Squads Dispatched 19 | . 2 . 2 . . . 9 6 . Investigation 7 | . . . 2 . . . 4 1 . Extermination . | . . . . . . . . . . Reinforcement 6 | . 2 . . . . . 4 . . Assault 2 | . . . . . . . . 2 . Garrison 4 | . . . . . . . 1 3 . Intercept . | . . . . . . . . . . Searches Triggered . | . . . . . . . . . . Construction Impeded . | . . . . . . . . . . Haulers Reinforced . | . . . . . . . . . . Active Scanning Responses . | . . . . . . . . . . Cargo Convoy Interrupts . | . . . . . . . . . . Stealth | -11 -10 -10 -9 -9 -9 -8 -8 -8 -8 --------- Run | Yrd Mat Min Mat Min Exi Min Mat Sto Gar Distress Signals 9 | . 2 . 1 . . . 5 1 . Communications Jammed . | . . . . . . . . . . Distress Signals . | . . . . . . . . . . Times Spotted 252 | . 29 7 46 22 . 7 56 38 47 Peak Tracking Total 17 | . 5 4 4 17 . 4 7 6 7 Tactical Retreats 17 | . 5 . 2 . . . 5 3 2 Traps | -11 -10 -10 -9 -9 -9 -8 -8 -8 -8 ------- Run | Yrd Mat Min Mat Min Exi Min Mat Sto Gar Traps Triggered 12 | . . . . 1 . . 4 . 7 Indirectly 1 | . . . . . . . 1 . . Trap Hack Attempts . | . . . . . . . . . . Triggered . | . . . . . . . . . . Disarmed . | . . . . . . . . . . Reprogrammed 6 | . . . . . . . . 6 . Reused . | . . . . . . . . . . Traps Extracted . | . . . . . . . . . . Installed . | . . . . . . . . . . Triggered . | . . . . . . . . . . Machines | -11 -10 -10 -9 -9 -9 -8 -8 -8 -8 ---------- Run | Yrd Mat Min Mat Min Exi Min Mat Sto Gar Machines Disabled 30 | . . . 2 1 . 2 14 2 9 Max in Single Turn 6 | . . . 2 1 . 1 6 1 2 Garrison Access 1 | . . . . . . . 1 . . Garrison Relay 6 | . . . . . . . . . 6 Phase Generator 1 | . . . . . . . . . 1 Machines Repaired . | . . . . . . . . . . Machines Dismantled . | . . . . . . . . . . Machines Sabotaged . | . . . . . . . . . . Overloaded Fab Kills . | . . . . . . . . . . Hacking | -11 -10 -10 -9 -9 -9 -8 -8 -8 -8 --------- Run | Yrd Mat Min Mat Min Exi Min Mat Sto Gar Machines Accessed 57 | . 6 1 14 1 5 . 14 14 2 Terminals 37 | . 5 . 10 . . . 10 10 2 Fabricators . | . . . . . . . . . . Repair Stations 6 | . 1 . 2 . . . 1 2 . Recycling Units 1 | . . . . . . . . 1 . Scanalyzers 4 | . . . 2 . . . 2 . . Garrison Access 2 | . . . . . . . 1 1 . Total Hacks 218 | . 17 1 45 1 50 . 53 48 3 Successful 133 | . 7 1 28 1 50 . 23 22 1 Failed 83 | . 10 . 16 . . . 30 25 2 Catastrophic 13 | . 1 . 4 . . . 6 1 1 Database Lockouts 2 | . . . 1 . . . . 1 . Manual 46 | . 12 . 12 . 1 . 12 9 . Terminals 108 | . 13 . 28 . . . 31 33 3 Fabricators . | . . . . . . . . . . Repair Stations 27 | . 4 . 4 . . . 8 11 . Recycling Units 2 | . . . . . . . . 2 . Scanalyzers 25 | . . . 13 . . . 12 . . Garrison Access 4 | . . . . . . . 2 2 . Terminal Hacks 94 | . 7 1 14 1 50 . 6 14 1 Record 52 | . . . 3 . 49 . . . . Part Schematic 1 | . . . . . . . . 1 . Robot Schematic 1 | . . . 1 . . . . . . Robot Analysis 13 | . 5 . 1 . . . 2 5 . Prototype ID Bank 9 | . 1 . 3 . . . 4 1 . Open Door 6 | . . 1 . 1 . . . 4 . Branch Access Points 2 | . . . 1 . . . . 1 . Terminal Index 2 | . 1 . 1 . . . . . . Unreport Threat 1 | . . . 1 . . . . . . Locate Traps 1 | . . . 1 . . . . . . Reprogram Traps 1 | . . . . . . . . 1 . Zone Layout 3 | . . . 2 . . . . 1 . Patrol Navigation 1 | . . . . . . . . . 1 Derelict Proto ID Bank 1 | . . . . . 1 . . . . Fabricator Hacks . | . . . . . . . . . . Repair Station Hacks 15 | . . . 3 . . . 6 6 . Scan Component 9 | . . . 2 . . . 3 4 . Repair 6 | . . . 1 . . . 3 2 . Recycling Unit Hacks 1 | . . . . . . . . 1 . Retrieve Components 1 | . . . . . . . . 1 . Scanalyzer 21 | . . . 11 . . . 10 . . Insert Component 11 | . . . 6 . . . 5 . . Analyze 10 | . . . 5 . . . 5 . . Garrison Access Hacks 2 | . . . . . . . 1 1 . Unlock Access 1 | . . . . . . . . 1 . Seal Access 1 | . . . . . . . 1 . . Unauthorized Hacks . | . . . . . . . . . . Terminals . | . . . . . . . . . . Fabricators . | . . . . . . . . . . Repair Stations . | . . . . . . . . . . Recycling Units . | . . . . . . . . . . Scanalyzers . | . . . . . . . . . . Garrison Access . | . . . . . . . . . . Data Cores Recovered 6 | . . . 2 . . . 2 2 . Used 5 | . . . 2 . . . 1 2 . Hacking Detections 47 | . 6 . 14 . . . 14 11 2 Full Trace Events 11 | . 1 . 4 . . . 4 1 1 Feedback Events . | . . . . . . . . . . Feedback Blocked . | . . . . . . . . . . Robot Schematics Acquired 1 | . . . 1 . . . . . . Robots Built . | . . . . . . . . . . Authchips . | . . . . . . . . . . Time . | . . . . . . . . . . Total Robot Build Rating . | . . . . . . . . . . Part Schematics Acquired 11 | . . . 5 . . . 5 1 . Parts Built . | . . . . . . . . . . Authchips . | . . . . . . . . . . Time . | . . . . . . . . . . Total Part Build Rating . | . . . . . . . . . . Parts Repaired 6 | . . . 1 . . . 3 2 . Time 250 | . . . 51 . . . 145 54 . Parts Recycled . | . . . . . . . . . . Recycled Matter . | . . . . . . . . . . Retrieved Matter . | . . . . . . . . . . Retrieved Components 10 | . . . . . . . . 10 . Parts Scanalyzed 10 | . . . 5 . . . 5 . . Part Schematics Acquired 10 | . . . 5 . . . 5 . . Parts Damaged 2 | . . . 1 . . . 1 . . Bothacking | -11 -10 -10 -9 -9 -9 -8 -8 -8 -8 ------------ Run | Yrd Mat Min Mat Min Exi Min Mat Sto Gar Used RIF Installer . | . . . . . . . . . . Robots Hacked . | . . . . . . . . . . Non-combat . | . . . . . . . . . . Combat . | . . . . . . . . . . Robot Hacks Applied . | . . . . . . . . . . Relay Couplers Released 25 | . . . . . . . . . 25 Machine Destruction 25 | . . . . . . . . . 25 Fabnet Peak Effective % . | . . . . . . . . . . Robots Rewired 3 | . . . . . . . . . 3 Allies Hacked . | . . . . . . . . . . Hacks Repelled . | . . . . . . . . . . Allies | -11 -10 -10 -9 -9 -9 -8 -8 -8 -8 -------- Run | Yrd Mat Min Mat Min Exi Min Mat Sto Gar Total Allies 8 | . . 3 . . . . . 2 3 Largest Group 3 | . . 3 3 . . . . 2 3 Highest-Rated Group 72 | . . 40 40 . . . . 62 72 Highest-Rated Ally 31 | . . 16 16 . . . . 31 31 Total Orders 1 | . . . . . . . . . 1 RETURN 1 | . . . . . . . . . 1 Ally Attacks 81 | . . 14 4 . . . 3 37 23 Total Damage 1067 | . . 129 13 . . . . 493 432 Kills 15 | . . 1 1 . . . . 11 2 Allies Corrupted . | . . . . . . . . . . Allies Melted . | . . . . . . . . . . Intel | -11 -10 -10 -9 -9 -9 -8 -8 -8 -8 ------- Run | Yrd Mat Min Mat Min Exi Min Mat Sto Gar Robot Analysis Total 13 | . 5 . 1 . . . 2 5 . Derelict Logs Recovered 4 | . . 3 . 1 . . . . . Drone Launches 14 | . . . . . . . 3 2 9 Drone Recoveries 1 | . . . . . . . . . 1 Exploration | -11 -10 -10 -9 -9 -9 -8 -8 -8 -8 ------------- Run | Yrd Mat Min Mat Min Exi Min Mat Sto Gar Turns Passed 8021 | 94 650 421 1329 420 275 521 1891 960 1460 Spaces Moved 8098 | 52 492 468 1226 563 438 638 1799 1041 1381 Core 1 | 1 . . . . . . . . . Treads . | . . . . . . . . . . Legs . | . . . . . . . . . . Wheels 1260 | 51 435 211 563 . . . . . . Hover 6837 | . 57 257 663 563 438 638 1799 1041 1381 Flight . | . . . . . . . . . . Fastest Speed 50 | 50 56 56 52 52 58 58 52 52 63 Average Speed 62 | 95 78 67 65 55 58 65 61 54 63 Slowest Speed 190 | 100 120 180 190 58 58 66 147 115 129 Overloaded Moves . | . . . . . . . . . . Propulsion Burnouts . | . . . . . . . . . . Robots Hopped . | . . . . . . . . . . Cave-ins Triggered . | . . . . . . . . . . Exploration Rate (%) 82 | 5 85 97 95 98 90 97 87 83 84 Regions Visited 9 Branch Regions 5 Pre-discovered Areas 2 | . . 1 . . 1 . . . . Known Exits Taken 2 | . . . 1 . . . . 1 . Unknown Exits Taken 7 | 1 1 1 . 1 1 1 1 . . Scrap Searched 3 | . . 1 . 1 . 1 . . . Spaces Dug . | . . . . . . . . . . Terrain Destroyed 320 | . . 4 97 61 . 3 56 3 96 Melee . | . . . . . . . . . . Projectile 18 | . . . . . . 3 3 3 9 AOE 301 | . . 4 97 61 . . 53 . 86 Terrain Rammed . | . . . . . . . . . . Walls Destroyed . | . . . . . . . . . . Machines Disabled . | . . . . . . . . . . Actions | -11 -10 -10 -9 -9 -9 -8 -8 -8 -8 --------- Run | Yrd Mat Min Mat Min Exi Min Mat Sto Gar Total 10016 | 73 630 549 1526 636 460 677 2356 1292 1817 Wait 716 | . 15 36 100 24 13 . 289 140 99 Move 8089 | 51 491 467 1225 562 437 637 1798 1040 1381 Hop . | . . . . . . . . . . Pick Up 74 | 3 13 7 20 4 1 4 20 . 2 Fast Attach 87 | 7 4 5 9 2 . 1 34 13 12 Attach 28 | . 4 1 5 3 . 2 7 1 5 Detach 29 | . 2 . 4 1 . . 11 8 3 Swap 120 | 3 7 6 20 15 4 3 39 6 17 Drop 152 | . 18 10 33 8 5 2 42 7 27 Fire 541 | 9 76 17 110 14 . 28 116 77 94 Melee . | . . . . . . . . . . Ram . | . . . . . . . . . . Kick . | . . . . . . . . . . Crush . | . . . . . . . . . . Escape Stasis 69 | . . . . . . . . . 69 Rewire 111 | . . . . 3 . . . . 108 Trap . | . . . . . . . . . . Miscellaneous . | . . . . . . . . . . Route ------- -11/Scrapyard -10/Materials (discovered 4 exits: *Mat x3 / *Min) -10/Mines (discovered 2 exits: *Mat x2) -9/Materials (discovered 5 exits: *Mat x3 / *Min x2) -9/Mines (discovered 3 exits: *Mat x2 / *Exi) -9/Exiles -8/Mines (discovered 2 exits: *Mat x2) -8/Materials (discovered 4 exits: *Fac x3 / *Sto) -8/Storage (discovered 2 exits: Rec / Gar) -8/Garrison (discovered 3 exits: *Fac x3) History --------- Turn | Location | Event 16 | -11/Scrapyard | Discovered new exit (range 15) 95 | -11/Scrapyard | Entered Materials 143 | -10/Materials | Discovered new exit (range 12) 201 | -10/Materials | Discovered new exit (range 13) 524 | -10/Materials | Discovered new exit (range 16) 590 | -10/Materials | Discovered new exit (range 10) 709 | -10/Materials | Build established: Scavenger-Mutant 745 | -10/Materials | Entered Mines 800 | -10/Mines | Found a damaged Exp. Sensor Array with a note attached 810 | -10/Mines | Found Prototype Device 825 | -10/Mines | Received a Rocket Launcher from a helpful Derelict 834 | -10/Mines | Discovered new exit (range 14) 892 | -10/Mines | Excavation squad dispatched 892 | -10/Mines | A large section of the Mines collapsed 909 | -10/Mines | Core integrity fell below 50% 963 | -10/Mines | Core integrity fell below 20% 984 | -10/Mines | Lost 3 parts (2n1u) 1019 | -10/Mines | Learned Materials security intel 1023 | -10/Mines | Found DCF Scrap (14 items) 1024 | -10/Mines | Learned Materials garrison access intel 1026 | -10/Mines | Learned Materials stockpile data 1046 | -10/Mines | Learned location of Storage (-8) 1062 | -10/Mines | Assisted by bots powering up and referring to "LRC-V3" 1109 | -10/Mines | Discovered new exit (range 12) 1143 | -10/Mines | Found the Drone Emporium 1147 | -10/Mines | Found Prototype Device 1147 | -10/Mines | Identified Bomb Drone Bay 1156 | -10/Mines | Identified Exp. Sensor Array 1166 | -10/Mines | Entered Materials 1166 | -9/Materials | Accompanied by 3 allies 1166 | -9/Materials | Evolved 2 slots: Propulsion x1, Weapon x1 1250 | -9/Materials | Central database locked down 1257 | -9/Materials | Lost 3 allies 1331 | -9/Materials | Identified exit to Mines 1789 | -9/Materials | Build established: Gunner 1794 | -9/Materials | Discovered new exit (range 14) 1974 | -9/Materials | Destroyed 8 combat bots 2087 | -9/Materials | Repaired Imp. Assault Rifle 2120 | -9/Materials | Discovered new exit (range 16) 2452 | -9/Materials | Discovered new exit (range 10) 2495 | -9/Materials | Entered Mines 2540 | -9/Mines | Deemed a non-threat by the Exiles lab entrance 2540 | -9/Mines | Discovered new exit (range 5) 2641 | -9/Mines | Assembled infested the area 2653 | -9/Mines | Met 8R-AWN 2670 | -9/Mines | Destroyed 7 combat bots 2685 | -9/Mines | Lost 3 parts (2n1w) 2718 | -9/Mines | Discovered new exit (range 8) 2783 | -9/Mines | Met a Derelict who couldn't figure out how to use a Trap Extractor 2858 | -9/Mines | Discovered new exit (range 6) 2915 | -9/Mines | Entered Exiles 2929 | -9/Exiles | Welcomed by 8R-AWN 2939 | -9/Exiles | Met EX-HEX 2967 | -9/Exiles | Met EX-DEC 2982 | -9/Exiles | Learned location of Zion (-6) 3006 | -9/Exiles | Visited The Gauntlet 3088 | -9/Exiles | Met EX-BIN 3096 | -9/Exiles | Aligned with FarCom system 3097 | -9/Exiles | Given EX-Vault access code 3120 | -9/Exiles | Opened EX-Vault 3130 | -9/Exiles | Found XL Autogun Array 3143 | -9/Exiles | Warned to stay clear of 0b10 Research branches 3186 | -9/Exiles | Discovered new exit (range 10) 3190 | -9/Exiles | Left Exiles lab with XL Autogun Array 3190 | -9/Exiles | Entered Mines 3263 | -8/Mines | Discovered new exit (range 3) 3502 | -8/Mines | Discovered new exit (range 11) 3575 | -8/Mines | Build established: Scavenger-Skirmisher 3620 | -8/Mines | Core integrity fell below 50% 3711 | -8/Mines | Entered Materials 3711 | -8/Materials | Evolved 2 slots: Utility x1, Weapon x1 3712 | -8/Materials | Loaded intel: 1 garrison access location 3824 | -8/Materials | Discovered new exit (range 15) 3987 | -8/Materials | Garrison activated, responded to threat 4274 | -8/Materials | Repaired Gauss Rifle 4330 | -8/Materials | Repaired Imp. Assault Rifle 4383 | -8/Materials | Repaired Cmb. Airjet 4407 | -8/Materials | Discovered new exit (range 3) 4479 | -8/Materials | Lost 3 allies 4660 | -8/Materials | Discovered new exit (range 16) 4791 | -8/Materials | Discovered new exit (range 16) 5522 | -8/Materials | Identified exit to Factory 5602 | -8/Materials | Entered Storage 5801 | -8/Storage | Garrison activated, responded to threat 5813 | -8/Storage | Identified exit to Garrison 5946 | -8/Storage | Repaired Broken Cmb. Airjet 5997 | -8/Storage | Core integrity fell below 50% 6009 | -8/Storage | Central database locked down 6058 | -8/Storage | Identified exit to Recycling 6189 | -8/Storage | Met a pair of Derelict thieves 6241 | -8/Storage | Repaired Minigun 6562 | -8/Storage | Entered Garrison 6562 | -8/Garrison | Accompanied by 1 ally 6584 | -8/Garrison | Triggered checkpoint 6660 | -8/Garrison | Garrison Relay disabled 6694 | -8/Garrison | Triggered checkpoint 6744 | -8/Garrison | Garrison Relay disabled 6801 | -8/Garrison | Spotted B-75 Beast 6801 | -8/Garrison | Spotted B-75 Beast 6812 | -8/Garrison | Triggered checkpoint 6872 | -8/Garrison | Lost 3 parts (1n1u1w) 7074 | -8/Garrison | Discovered exit to Factory (range 10) 7149 | -8/Garrison | Garrison Relay disabled 7245 | -8/Garrison | Lost 4 allies 7256 | -8/Garrison | Triggered checkpoint 7275 | -8/Garrison | Garrison Relay disabled 7329 | -8/Garrison | Discovered exit to Factory (range 10) 7342 | -8/Garrison | Triggered checkpoint 7406 | -8/Garrison | Triggered checkpoint 7467 | -8/Garrison | Discovered exit to Factory (range 3) 7476 | -8/Garrison | Phase Generator disabled 7528 | -8/Garrison | Lost 4 allies 7544 | -8/Garrison | Triggered checkpoint 7652 | -8/Garrison | Garrison Relay disabled 7742 | -8/Garrison | Triggered checkpoint 7771 | -8/Garrison | Core integrity fell below 20% 7911 | -8/Garrison | Garrison Relay disabled 8022 | -8/Garrison | Destroyed by B-75 Beast with Magnetic Acceleration Cannon Last Messages --------------- 07974_ G-47 Trooper destroyed. 07976_ Acquired 16 matter. 08001_ B-75 Beast springs to life. 08002_ Cmb. Airjet blasted off. 08003_ Slug penetrates Wall. 08006_ Slug penetrates B-75 Beast. 08008_ Shotgunner 3b destroyed. 08010_ Slug penetrates B-75 Beast. 08010_ Shotgunner 3c destroyed. 08013_ Knocked back. 08013_ Slug penetrates B-75 Beast. 08013_ Slug penetrates Wall. 08014_ Acquired 1 matter. 08015_ Shotgunner 3a Nuclear Core blasted off. 08016_ Acquired 3 matter. 08016_ Lgt. Nuclear Core destroyed. 08016_ Cmb. Airjet blasted off. 08017_ Slug penetrates B-75 Beast. 08019_ Critical hit (Meltdown: +330). 08021_ Shotgunner 3a destroyed. Map ----- +----------------------------------------------------+ | ?????????????????#####?# #???# #?#####?????????? | | ?????????????#####!!!### #???# ###!!!#?????????? | | ?????????????# = * #???# ##????????? | | ?????????????# ######### #???# ###### #????####? | | ?????????????# #???????# #???# #????# #????#""#? | | ?????????????# #???????# #???# #????# #????#T #? | | ?????????????# #???????# #???# #????# #????#" #? | | ?????????????# #?????### #???# ###??# #????## #? | | ?????????????# #?????# #???# = #### ####### #? | | #######??????# #?????# #???#[* # #? | | #??????#=#?????# #???# [[ ############### | | #??????# #?????### #???#= ###?????????# # | | #??????# ######### ##### *############# # | | ### #??????# ^ =[ # | | ??# #??????# # | | ??# #??????# ^ # | | ### #??????# ####### ######################## | | #??????# #?????# #??????????????????????? | | ### #???#### ##????# #??????????????????????? | | ??# #???# ????? #??????????????????????? | | ??# #???# ## #?????# #??????????????????????? | | ??# ##### ## #?????# #??????????????????????? | | ??# ## ## #?????# #??????????????????????? | | ??# ## ## #?????#[%#??????# ####??????????? | | ### #######[=#####!!! !!!#??????????? | | =%* %@%[! BB ???????? | | ### * %%=[*% BBBB #??????????? | | ??#=*=##%! ## ##############BB #??????????? | | ### =%## ## ###?????????????? #??????????? | | ! =[ #??????????????????#??????????? | | # #?????????????????????????????? | | # #?????????????????????????????? | | # #?????????????????????????????? | | ### ## ##= ^###?????????????????????????????? | | ??# ## ##^^ #???????????????????????????????? | | ? #???????????????????????????????? | | ???????????????????????????????? | | ### ##??????????????????????????????? | | ??# ## ## #???????????????????????????????? | | ??# ## ## #???????????????????????????????? | | ### ######## #???????????????????????????????? | | # #??????# #???????????????????????????????? | | #??????# #???????????????????????????????? | | # #??????# #???????????????????????????????? | | #= #??????# ################################# | | # # #??????# ^ | | #??????# = ^^ | | #??????# | | #??????########"############ ### ######## < | | #####*#????????????# #??????????# #?# #??????# | +----------------------------------------------------+ Best States ------------- Heat Dissipation 50 Energy Generation 14 Energy Capacity 250 Matter Stores 300 Matter Capacity 300 Sight Range 16 Terrain Scan Range 16 Terrain Scan Density 85 Armor Coverage 150 Core Shielding 20 Propulsion Shielding 33 Weapon Shielding 66 Evasion (%) 60 Targeting Accuracy 13 Target Analysis 5 Offensive Hacking 20 Defensive Hacking 10 Item Schematics ----------------- Hvy. Assault Rifle | -9/Materials | Scanalyzed Imp. Assault Rifle | -9/Materials | Scanalyzed Airjet | -9/Materials | Scanalyzed Exp. Sensor Array | -9/Materials | Scanalyzed Rocket Launcher | -9/Materials | Scanalyzed Mni. Assault Cannon | -8/Materials | Scanalyzed Cmb. Airjet | -8/Materials | Scanalyzed Aerolev Unit | -8/Materials | Scanalyzed Imp. Field Recycling Unit | -8/Materials | Scanalyzed Hvy. Rocket Launcher | -8/Materials | Scanalyzed Enh. Optical Array | -8/Storage | Hacked Robot Schematics ------------------ M-13 Machinist | -9/Materials | Hacked Fabricated ------------ Nothing Alien Tech Used ----------------- None Achievements -------------- None Challenges ------------ None Game ------ Seed ShieldAntigravExtrapolator Manual? 0 Play Time 01:54:34 Cumulative 14.4 hours Start 2025.01.07 @ 12:16:52 End 2025.01.07 @ 14:13:07 Sessions 1 Manual Loads 0 Difficulty Rogue Special Mode None Game No. 8 Rogue 8 Adventurer 0 Explorer 0 Win Type - Total 0 Types 0/0/0/0/0/0/0/0/0 Lore% 15 Gallery% 18 Achievement% 28 Wizard Run 0 Options --------- Layout 0 ASCII 0 Keyboard 1 Movement Arrows Keybinds 0 Fullscreen 1 Font 12/Proggy Map View 83x54 Zoom Use 0% Tactical HUD 1 Map Filters NONE Filters NONE Steam 0 RUN: 6886acb4-c36c-45f5-84c4-8d93c195c526